Cogmind - Beta 16 @@@ ROGUE MODE // 2025.12.13 @ 23:18:27 Player: Keen Result: Destroyed by G-34 Mercenary with Small Laser Performance ------------- Evolutions (1) 500 Regions Visited (2) 400 Robots Destroyed (34) 170 Value Destroyed (702) 702 Prototype IDs (0) 0 Alien Tech Used (0) 0 Bonus (0) 0 TOTAL SCORE: 1772 Bonus ------- None Cogmind --------- Core Integrity 0/400 Matter 280/300 Energy 533/630 System Corruption 5% Temperature Cool (23) Movement Rolling (95) Ox1 Location -9/Materials Parts ------- > --- POWER (2) -------- Improved Ion Engine Reinforced Ion Engine > --- PROPULSION (2) --- Wheel Wheel > --- UTILITY (2) ------ Large Battery > --- WEAPON (3) ------- Medium Laser Small Laser Hammer > --- INVENTORY (5) ---- Wheel Welding Torch Peak State ------------ > --- POWER ------------ Ion Engine > --- PROPULSION ------- Aluminum Leg Aluminum Leg > --- UTILITY ---------- Large Battery Machine Analyzer > --- WEAPON ----------- Particle Cannon Assault Rifle > --- INVENTORY -------- Beam Cannon [Rating: 10] Favorites ----------- Power Ion Engine Engine Ion Engine Propulsion Aluminum Leg Leg Aluminum Leg Wheel Wheel Utility Large Battery Storage Large Battery Processor Machine Analyzer Weapon Small Laser Energy Gun Small Laser Energy Cannon Beam Cannon Ballistic Gun Assault Rifle Launcher Rocket Launcher Impact Weapon Hammer Build | -11 -10 -9 ------- Run | Yrd Mat Mat Slots Evolved 2 | . . 2 Power 1 | . . 1 Propulsion . | . . . Utility . | . . . Weapon 1 | . . 1 Parts Attached 24 | 5 6 13 Power 4 | 1 1 2 Engine 4 | 1 1 2 Core . | . . . Reactor . | . . . Propulsion 7 | 2 1 4 Treads . | . . . Leg 4 | 2 1 1 Wheel 3 | . . 3 Hover . | . . . Flight . | . . . Utility 3 | . 2 1 Device . | . . . Storage 1 | . 1 . Processor 2 | . 1 1 Hackware . | . . . Protection . | . . . Artifact . | . . . Weapon 10 | 2 2 6 Energy Gun 5 | 1 . 4 Energy Cannon 2 | . 2 . Ballistic Gun 1 | 1 . . Ballistic Cannon . | . . . Launcher 1 | . . 1 Special Weapon . | . . . Impact Weapon 1 | . . 1 Slashing Weapon . | . . . Piercing Weapon . | . . . Special Melee Weapon . | . . . Unidentified Prototypes . | . . . Parts Lost 9 | . 2 7 Power 1 | . . 1 Propulsion 3 | . . 3 Utility 1 | . . 1 Weapon 4 | . 2 2 Highest Loss Streak 3 | . 2 3 To Critical Strikes . | . . . Average Backups 1 | . 2 . Power . | . . . Propulsion . | . . . Utility . | . 1 . Weapon . | . . . Tool/Special . | . . . Unused Backups 4 | . 3 1 Power 1 | . 1 . Propulsion . | . . . Utility 2 | . 2 . Weapon . | . . . Tool/Special 1 | . . 1 Average Slot Usage (%) 65 | . 79 52 Engine 9 | . 14 5 Leg 19 | . 28 12 Storage 8 | . 4 11 Processor 6 | . 4 8 Energy Gun 7 | . 7 7 Energy Cannon 3 | . 7 . Ballistic Gun 6 | . 13 . Launcher 2 | . . 4 Impact Weapon 1 | . . 2 Peak Build Rating 10 | 5 10 10 Average Rating 6 | 3 6 6 On Entrance 4 | . 5 7 Avg Prop Armor Cover (%) . | . . . Naked Turns . | . . . Heaviest Build 25 | 6 14 25 Greatest Support 20 | 20 20 20 Greatest Overweight (x) 5 | . . 5 Average Overweight (x) . | . . . Largest Inventory Capacity 5 | 5 5 5 Average Capacity 5 | 5 5 5 Most Carried 5 | 1 5 3 Average Carried 1 | . 2 . Final Capacity 5 | 5 5 5 Final Carried 2 | 1 . 2 Class Distribution -------------------- 100% | Mutant Dominant Class ---------------- Mutant | -10/Materials Mutant | -9/Materials Resources | -11 -10 -9 ----------- Run | Yrd Mat Mat Matter Collected 749 | 166 188 395 Remotely . | . . . Salvage Created 827 | . 201 626 Parts 62 | . 8 54 Haulers Intercepted . | . . . Recyclers Shooed 2 | . 1 1 Parts Field Recycled . | . . . Retrieved Matter . | . . . Parts Self-Destructed . | . . . Prevented . | . . . Parts Restored . | . . . Kills | -11 -10 -9 ------- Run | Yrd Mat Mat Combat Hostiles Destroyed 17 | . 3 14 Guns 7 | . . 7 Cannons 3 | . 3 . AOE 7 | . . 7 Classes Destroyed 10 | . 3 7 Worker 8 | . . 8 Builder 3 | . . 3 Recycler 2 | . . 2 Mechanic 1 | . 1 . Watcher 3 | . 2 1 Swarmer 3 | . . 3 Grunt 10 | . 3 7 Brawler 1 | . . 1 Duelist 1 | . . 1 Sentry 2 | . . 2 Best Kill Streak 11 | . 3 11 Combat Bots Only 4 | . 2 4 Max Kills in Single Turn 2 | . 1 2 Gunslinging 1 | . . 1 Exploded 1 | . . 1 Melee . | . . . Uniques/NPCs Destroyed . | . . . Combat | -11 -10 -9 -------- Run | Yrd Mat Mat Hostile Shots Fired 163 | . 56 107 Missed 52 | . 16 36 Hits 111 | . 40 71 Melee 9 | . . 9 Projectile 102 | . 40 62 Critical Strikes 4 | . 3 1 Damage Taken 1421 | . 503 918 Core 500 | . 100 400 Absorbed by Shields . | . . . Regen/Repaired (Parts) 50 | . . 50 Core Remaining (%) 80 | 100 60 . Volleys Fired 98 | . 42 56 Largest 2 | . 2 2 Hottest 90 | . 88 90 Shots Fired 166 | . 82 84 Gun 119 | . 55 64 Cannon 27 | . 27 . Launcher 20 | . . 20 Special . | . . . Kinetic 42 | . 42 . Thermal 104 | . 40 64 Explosive 20 | . . 20 Electromagnetic . | . . . Robot Hit Streak 18 | . 7 18 Robot Miss Streak 4 | . 4 4 Penetration Max . | . . . Secondary Targets 3 | . . 3 Max Gunslinging Chain 1 | . . 1 Shots Hit Robots 87 | . 36 51 Core Hits 54 | . 13 41 Critical Kills . | . . . Critical Parts Destroyed . | . . . Critical Strikes . | . . . Melee Attacks 1 | . . 1 Impact 1 | . . 1 Slashing . | . . . Piercing . | . . . Sneak Attacks 1 | . . 1 Combat Hostiles . | . . . Follow-up Attacks . | . . . Damage Inflicted 2177 | . 599 1578 Guns 779 | . 303 476 Cannons 296 | . 296 . Explosions 1032 | . . 1032 Melee 70 | . . 70 Ramming . | . . . Kinetic 257 | . 257 . Thermal 945 | . 342 603 Explosive 905 | . . 905 Electromagnetic . | . . . Impact 70 | . . 70 Slashing . | . . . Piercing . | . . . Highest Corruption 5 | . . 5 Average Corruption 5 | . . 5 Corruption Purged . | . . . Corruption Blocked . | . . . Effects 4 | . . 4 Message Errors 1 | . . 1 Matter Fused 2 | . . 2 Misfires 1 | . . 1 Overload Shots . | . . . Overflow Damage 107 | . . 107 Projectiles . | . . . Explosions 77 | . . 77 Melee 30 | . . 30 Knockbacks 1 | . . 1 Impact 1 | . . 1 Kinetic . | . . . Secondary . | . . . Self-Inflicted Damage . | . . . Shots . | . . . Rammed . | . . . Targets Rammed . | . . . Kicked . | . . . Crushed . | . . . Highest Temperature 369 | . 369 72 Average Temperature 87 | . 112 21 Received Heat Transfer 501 | . 336 165 Siege Activations . | . . . Martial Activations . | . . . Shielding Activations . | . . . Robots Disrupted . | . . . Combat Hostiles . | . . . Robots Corrupted 1 | . . 1 Combat Hostiles . | . . . Parts Fried 2 | . . 2 Impact Corruptions 1 | . . 1 Robots Melted . | . . . Combat Hostiles . | . . . Parts Melted 1 | . . 1 Heat Transferred 1889 | . 692 1197 Parts Sabotaged . | . . . Parts Stolen . | . . . Parts Stripped . | . . . Power Chain Reactions . | . . . Alert | -11 -10 -9 ------- Run | Yrd Mat Mat Maximum Alert Level 1 | . . 1 Low Security (%) 73 | 100 100 47 Level 1 26 | . . 52 Level 2 . | . . . Level 3 . | . . . Level 4 . | . . . Level 5 . | . . . High Security . | . . . Max Security . | . . . Peak Influence 369 | . 50 369 Initial . | . . . Average 96 | . 4 187 Influence Increases 721 | . 117 604 Destroy 0b10 Robot/C 340 | . 60 280 Destroy 0b10 Robot/NC 85 | . 15 70 Destroy Leader 86 | . 14 72 Successful Hack 18 | . 12 6 Disable Machine 75 | . 15 60 Destroy Structure 117 | . 1 116 Influence Decreases 371 | . 117 254 Time Decay 254 | . 70 184 Lost Part 77 | . 7 70 Purge Threat 40 | . 40 . Squads Dispatched 2 | . . 2 Investigation 2 | . . 2 Extermination . | . . . Reinforcement . | . . . Assault . | . . . Garrison . | . . . Intercept . | . . . Searches Triggered . | . . . Construction Impeded . | . . . Haulers Reinforced . | . . . Active Scanning Responses . | . . . Cargo Convoy Interrupts . | . . . Stealth | -11 -10 -9 --------- Run | Yrd Mat Mat Distress Signals 4 | . 1 3 Communications Jammed . | . . . Distress Signals . | . . . Times Spotted 31 | . 11 20 Peak Tracking Total 6 | . 3 6 Tactical Retreats . | . . . Traps | -11 -10 -9 ------- Run | Yrd Mat Mat Traps Triggered . | . . . Indirectly . | . . . Trap Hack Attempts . | . . . Triggered . | . . . Disarmed 6 | . 6 . Reprogrammed . | . . . Reused . | . . . Traps Extracted . | . . . Installed . | . . . Triggered . | . . . Machines | -11 -10 -9 ---------- Run | Yrd Mat Mat Machines Disabled 5 | . 1 4 Max in Single Turn 2 | . 1 2 Machines Repaired . | . . . Machines Dismantled . | . . . Machines Sabotaged . | . . . Overloaded Fab Kills . | . . . Hacking | -11 -10 -9 --------- Run | Yrd Mat Mat Machines Accessed 6 | . 3 3 Terminals 4 | . 3 1 Fabricators . | . . . Repair Stations 1 | . . 1 Recycling Units . | . . . Scanalyzers 1 | . . 1 Garrison Access . | . . . Total Hacks 21 | . 9 12 Successful 13 | . 7 6 Failed 7 | . 2 5 Catastrophic 1 | . . 1 Database Lockouts 1 | . . 1 Manual . | . . . Terminals 14 | . 9 5 Fabricators . | . . . Repair Stations 4 | . . 4 Recycling Units . | . . . Scanalyzers 3 | . . 3 Garrison Access . | . . . Terminal Hacks 8 | . 7 1 Record 2 | . 2 . Branch Access Points 1 | . 1 . Unreport Threat 1 | . 1 . Disarm Traps 1 | . 1 . Dispatch Records 1 | . . 1 Transport Status 1 | . 1 . Hauler Manifests 1 | . 1 . Fabricator Hacks . | . . . Repair Station Hacks 3 | . . 3 Scan Component 2 | . . 2 Repair 1 | . . 1 Recycling Unit Hacks . | . . . Scanalyzer 2 | . . 2 Retrieve Study 2 | . . 2 Garrison Access Hacks . | . . . Unauthorized Hacks . | . . . Terminals . | . . . Fabricators . | . . . Repair Stations . | . . . Recycling Units . | . . . Scanalyzers . | . . . Garrison Access . | . . . Data Cores Recovered . | . . . Used . | . . . Hacking Detections 5 | . 3 2 Full Trace Events 3 | . 1 2 Feedback Events . | . . . Feedback Blocked . | . . . Robot Schematics Acquired . | . . . Robots Built . | . . . Authchips . | . . . Time . | . . . Total Robot Build Rating . | . . . Part Schematics Acquired . | . . . Parts Built . | . . . Authchips . | . . . Time . | . . . Total Part Build Rating . | . . . Part Studies Acquired 2 | . . 2 Parts Repaired 1 | . . 1 Time 26 | . . 26 Parts Recycled . | . . . Recycled Matter . | . . . Retrieved Matter . | . . . Retrieved Components . | . . . Parts Scanalyzed . | . . . Part Schematics Acquired . | . . . Parts Damaged . | . . . Bothacking | -11 -10 -9 ------------ Run | Yrd Mat Mat Used RIF Installer . | . . . Robots Hacked . | . . . Non-combat . | . . . Combat . | . . . Robot Hacks Applied . | . . . Relay Couplers Released . | . . . Fabnet Peak Effective % . | . . . Robots Rewired . | . . . Allies Hacked . | . . . Hacks Repelled . | . . . Allies | -11 -10 -9 -------- Run | Yrd Mat Mat Total Allies . | . . . Largest Group . | . . . Highest-Rated Group . | . . . Highest-Rated Ally . | . . . Total Orders . | . . . Ally Attacks . | . . . Total Damage . | . . . Kills . | . . . Allies Corrupted . | . . . Allies Melted . | . . . Intel | -11 -10 -9 ------- Run | Yrd Mat Mat Active Infowar (turns) 496 | . 143 353 Machine Analysis 496 | . 143 353 Robot Analysis Total . | . . . Derelict Logs Recovered . | . . . Drone Launches . | . . . Drone Recoveries . | . . . Exploration | -11 -10 -9 ------------- Run | Yrd Mat Mat Turns Passed 1009 | 72 430 507 Spaces Moved 591 | 59 232 300 Core 66 | 9 . 57 Treads . | . . . Legs 508 | 50 232 226 Wheels 17 | . . 17 Hover . | . . . Flight . | . . . Fastest Speed 50 | 50 120 50 Average Speed 113 | 109 120 109 Slowest Speed 300 | 120 120 300 Overloaded Moves . | . . . Propulsion Burnouts . | . . . Robots Hopped . | . . . Potential Cave-ins 3 | . . 3 Cave-ins Triggered . | . . . Exploration Rate (%) 23 | 5 41 23 Regions Visited 2 Branch Regions . Pre-discovered Areas . | . . . Known Exits Taken . | . . . Unknown Exits Taken 2 | 1 1 . Scrap Searched . | . . . Spaces Dug 12 | . . 12 Terrain Destroyed 161 | . . 161 Melee . | . . . Projectile . | . . . AOE 161 | . . 161 Terrain Rammed . | . . . Walls Destroyed . | . . . Machines Disabled . | . . . Actions | -11 -10 -9 --------- Run | Yrd Mat Mat Total 754 | 64 302 388 Wait 22 | . 10 12 Move 589 | 58 231 300 Hop . | . . . Pick Up 10 | 1 6 3 Fast Attach 17 | 5 1 11 Attach 2 | . 1 1 Detach . | . . . Swap 6 | . 4 2 Drop 9 | . 7 2 Fire 98 | . 42 56 Melee 1 | . . 1 Ram . | . . . Kick . | . . . Crush . | . . . Escape Stasis . | . . . Rewire . | . . . Trap . | . . . Miscellaneous . | . . . Route ------- -11/Scrapyard -10/Materials (discovered 3 exits: *Mat / *Min x2) -9/Materials History --------- Turn | Location | Event 4 | -11/Scrapyard | Discovered new exit (range 14) 73 | -11/Scrapyard | Entered Materials 254 | -10/Materials | Discovered new exit (range 9) 304 | -10/Materials | Build established: Mutant 450 | -10/Materials | Discovered new exit (range 15) 456 | -10/Materials | Identified exit to Mines 503 | -10/Materials | Entered another Materials area 503 | -9/Materials | Evolved 2 slots: Power x1, Weapon x1 552 | -9/Materials | Repaired Aluminum Leg+? 591 | -9/Materials | Central database locked down 789 | -9/Materials | Lost 3 parts (1n2w) 839 | -9/Materials | Core integrity fell below 50% 888 | -9/Materials | Core integrity fell below 20% 1010 | -9/Materials | Destroyed by G-34 Mercenary with Small Laser Last Messages --------------- R-06 Scavenger destroyed. K-01 Serf cleans the Nuclear Reactor. K-01 Serf collects debris. K-01 Serf destroyed. K-01 Serf collects debris. Acquired Rnf. Ion Engine. K-01 Serf collects debris. K-01 Serf cleans the Recycling Unit. System corrupted: Matter fused (-10). Acquired Wheel. K-01 Serf collects debris. Acquired Wheel. K-01 Serf collects debris. Acquired 50 matter. K-01 Serf collects debris. Acquired Med. Laser. Dropped Sml. Laser. K-01 Serf collects debris. AX